[Event "Caplin Hastings Masters 2023-24"]
[Site "Hastings"]
[Date "2024.01.02"]
[Round "6.30"]
[White "Rudd, Jack"]
[Black "Verbytski, Oleg"]
[Result "1-0"]
[ECO "D36"]
[WhiteElo "2314"]
[BlackElo "1771"]
[Annotator "RC"]
[PlyCount "123"]
[EventDate "2023.12.18"]
[EventType "swiss"]
[EventCountry "ENG"]
[SourceTitle "playchess.com"]
[Source "ChessBase"]
[SourceQuality "1"]
[TimeControl "40/6000+30:3000+30"]

1. d4 {[%emt 0:00:01]} d5 {[%emt 0:00:07]} 2. c4 {[%emt 0:00:04]} e6 {[%emt 0:00:03]} 3. Nc3 {[%emt 0:00:05]} Nf6 {[%emt 0:00:07]} 4. cxd5 {[%emt 0:00:05]} exd5 {[%emt 0:00:07]} 5. Bg5 {[%emt 0:00:04]} Nbd7 {[%emt 0:00:06]} 6. e3 {[%emt 0:00:05]} Be7 {[%emt 0:00:07]} 7. Bd3 {[%emt 0:00:05]} O-O {[%emt 0:00:05]} 8. Qc2 {[%emt 0:00:05]} Re8 {[%emt 0:00:18]} 9. Nf3 {[%emt 0:00:06]} c6 {[%emt 0:00:16]} 10. O-O {[%emt 0:00:07]} h6 {[%emt 0:00:03]} 11. Bf4 {[%emt 0:00:16]} Nf8 {[%emt 0:00:17]} 12. h3 {[%emt 0:00:17]} Bd6 {[%emt 0:10:20]} 13. Bxd6 {[%emt 0:00:14]} Qxd6 {[%emt 0:00:06]} 14. Rab1 {[%emt 0:00:05]} a5 {[%emt 0:01:15]} 15. a3 {[%emt 0:00:15]} N8d7 {[%emt 0:09:45]} 16. b4 {[%emt 0:01:13]} b5 {[%emt 0:00:08]} 17. bxa5 {[%emt 0:02:42]} Qxa3 {[%emt 0:05:54]} 18. Bxb5 {[%emt 0:00:39]} Qd6 {[%emt 0:09:19]} 19. Bd3 {[%emt 0:00:22]} Rxa5 {[%emt 0:02:34]} 20. Rfc1 {[%emt 0:00:38]} Ba6 {[%emt 0:02:24]} 21. Bf5 {[%emt 0:01:38]} Bc4 {[%emt 0:05:17]} 22. Nd2 {[%emt 0:00:49]} c5 {[%emt 0:05:56]} 23. Nxc4 {[%emt 0:00:54]} dxc4 {[%emt 0:00:07]} 24. Nb5 {[%emt 0:00:32]} Qe7 {[%emt 0:07:12]} 25. Qxc4 {[%emt 0:00:22]} cxd4 {[%emt 0:00:08]} 26. Nxd4 {[%emt 0:00:35]} Ne5 {[%emt 0:03:20]} 27. Qc3 {[%emt 0:00:46]} Ra3 {[%emt 0:02:51]} 28. Qc7 {[%emt 0:01:26]} g6 {[%emt 0:01:28]} 29. Qxe7 {[%emt 0:00:43]} Rxe7 {[%emt 0:00:07]} 30. Rc8+ {[%emt 0:00:18]} Kg7 {[%emt 0:00:34]} 31. Bc2 {[%emt 0:00:26]} h5 {[%emt 0:09:58]} 32. Rb5 {[%emt 0:02:26]} Ra1+ {[%emt 0:05:32]} 33. Kh2 {[%emt 0:00:09]} Rf1 {[%emt 0:01:11]} 34. f3 {[%emt 0:01:11]} h4 {[%emt 0:01:34]} 35. Rb1 {[%emt 0:03:05]} Rxb1 {[%emt 0:04:13]} 36. Bxb1 {[%emt 0:00:07]} Nh5 {[%emt 0:02:07]} 37. f4 {[%emt 0:02:57]} Nd7 {[%emt 0:01:43]} 38. Rc3 {[%emt 0:01:05]} Ndf6 {[%emt 0:01:45]} 39. Nc6 {[%emt 0:01:55]} Rc7 {[%emt 0:02:31]} 40. Rc5 {[%emt 0:04:48]} Ng3 {[%emt 0:10:51]} 41. Kg1 {[%emt 0:50:37]} Rd7 {[%emt 0:52:24]} 42. Nd4 {[%emt 0:00:54]} Nd5 {[%emt 0:00:56]} 43. Kf2 {[%emt 0:00:50]} Nxf4 {[%emt 0:01:11]} 44. Rc4 {[%emt 0:01:07]} Nfh5 {[%emt 0:04:18]} 45. Bc2 {[%emt 0:02:20]} g5 {[%emt 0:00:00]} 46. Rc5 {[%emt 0:00:00]} f6 {[%emt 0:00:00]} 47. Kf3 {[%emt 0:00:00]} Rb7 {[%emt 0:00:00]} 48. Ne6+ {[%emt 0:00:00]} Kh6 {[%emt 0:00:00]} 49. Rc8 {[%emt 0:00:00]} f5 {[%emt 0:00:00]} 50. Rc6 {[%emt 0:00:00]} Rf7 {[%emt 0:00:00]} 51. Nd4+ {[%emt 0:00:00]} Kg7 {[%emt 0:00:00]} 52. Bb3 {[%emt 0:00:00]} Rf6 {[%emt 0:00:00]} 53. Rc7+ {[%emt 0:00:00]} Kg6 {[%emt 0:00:00]} 54. Nc6 {[%emt 0:00:00]} Kh6 {[%emt 0:00:00]} 55. Ne7 {[%emt 0:00:00]} Ra6 {[%emt 0:00:00]} 56. Ng8+ {[%emt 0:00:00]} Kg6 {[%emt 0:00:00]} 57. Bf7+ {[%emt 0:00:00]} Kg7 {[%emt 0:00:00]} 58. Bc4+ {[%emt 0:00:00]} Kg6 {[%emt 0:00:00]} 59. Bxa6 {[%emt 0:00:00]} g4+ {[%emt 0:00:00]} 60. hxg4 {[%emt 0:00:00]} fxg4+ {[%emt 0:00:00]} 61. Kxg4 {[%emt 0:00:00]} h3 {[%emt 0:00:00]} 62. Bd3+ {[%emt 0:00:00]} 1-0

[Event "Caplin Hastings Masters 2023-24"]
[Site "Hastings"]
[Date "2024.01.02"]
[Round "6.31"]
[White "Boggarapu, Kritan"]
[Black "Byron, Alan M"]
[Result "1-0"]
[ECO "B15"]
[WhiteElo "1857"]
[BlackElo "2134"]
[Annotator "NA RC"]
[PlyCount "75"]
[EventDate "2023.12.18"]
[EventType "swiss"]
[EventCountry "ENG"]
[SourceTitle "playchess.com"]
[Source "ChessBase"]
[SourceQuality "1"]
[TimeControl "40/6000+30:3000+30"]

1. e4 {[%emt 0:00:09]} c6 {[%emt 0:00:00]} 2. d4 {[%emt 0:00:00]} d5 {[%emt 0:00:00]} 3. Nc3 {[%emt 0:00:18]} dxe4 {[%emt 0:00:03]} 4. Nxe4 {[%emt 0:00:02]} Nf6 {[%emt 0:00:28]} 5. Nxf6+ {[%emt 0:00:06]} exf6 {[%emt 0:00:22]} 6. Nf3 {[%emt 0:00:22]} Bd6 {[%emt 0:00:40]} 7. Be3 {[%emt 0:01:24]} O-O {[%emt 0:00:13]} 8. Qd2 {[%emt 0:00:15]} Be6 {[%emt 0:03:07]} 9. c4 {[%emt 0:02:50]} b5 {[%emt 0:08:49]} 10. d5 {[%emt 0:06:52]} cxd5 {[%emt 0:00:24]} 11. c5 {[%emt 0:00:18]} Be7 {[%emt 0:15:05]} 12. Bxb5 {[%emt 0:00:59]} a6 {[%emt 0:00:11]} 13. Be2 {[%emt 0:02:27]} Nd7 {[%emt 0:05:31]} 14. Rc1 {[%emt 0:04:04]} Ne5 {[%emt 0:00:43]} 15. Nd4 {[%emt 0:02:04]} Qc8 {[%emt 0:05:14]} 16. b4 {[%emt 0:07:39]} Bg4 {[%emt 0:05:27]} 17. f3 {[%emt 0:01:16]} Be6 {[%emt 0:01:57]} 18. O-O {[%emt 0:00:55]} Rd8 {[%emt 0:00:16]} 19. Qc3 {[%emt 0:00:46]} Nc6 {[%emt 0:03:57]} 20. a4 {[%emt 0:01:46]} f5 {[%emt 0:04:44]} 21. b5 {[%emt 0:08:45]} axb5 {[%emt 0:01:15]} 22. axb5 {[%emt 0:00:06]} Na5 {[%emt 0:00:15]} 23. c6 {[%emt 0:08:40]} Nc4 {[%emt 0:03:44]} 24. Bxc4 {[%emt 0:04:34]} dxc4 {[%emt 0:00:06]} 25. Nxe6 {[%emt 0:05:18]} Qxe6 {[%emt 0:01:55]} 26. Bf2 {[%emt 0:00:13]} Ra4 {[%emt 0:05:02]} 27. c7 {[%emt 0:08:19]} Rc8 {[%emt 0:09:55]} 28. Rfe1 {[%emt 0:00:20]} Qd7 {[%emt 0:00:25]} 29. Rxe7 {[%emt 0:00:47]} Qxe7 {[%emt 0:00:13]} 30. b6 {[%emt 0:00:06]} Rb4 {[%emt 0:04:42]} 31. Qe3 {[%emt 0:01:04]} Qd7 {[%emt 0:03:05]} 32. Qd4 {[%emt 0:00:52]} Qxd4 {[%emt 0:07:01]} 33. Bxd4 {[%emt 0:02:44]} f6 {[%emt 0:09:27]} 34. Rd1 {[%emt 0:02:47]} Kf7 {[%emt 0:02:05]} 35. Bc5 {[%emt 0:01:12]} Rb5 {[%emt 0:00:36]} 36. Rd8 {[%emt 0:00:32]} c3 {[%emt 0:07:18]} 37. Be3 {[%emt 0:00:50]} Re5 {[%emt 0:02:36]} 38. Rxc8 {[%emt 0:00:55]} 1-0

[Event "Caplin Hastings Masters 2023-24"]
[Site "Hastings"]
[Date "2024.01.02"]
[Round "6.32"]
[White "Damodaran, Patrick"]
[Black "Thompson, Ian D"]
[Result "0-1"]
[ECO "D60"]
[WhiteElo "1798"]
[BlackElo "2011"]
[Annotator "NA RC"]
[PlyCount "140"]
[EventDate "2023.12.18"]
[EventType "swiss"]
[EventCountry "ENG"]
[SourceTitle "playchess.com"]
[Source "ChessBase"]
[SourceQuality "1"]
[TimeControl "40/6000+30:3000+30"]

1. d4 {[%emt 0:01:28]} d5 {[%emt 0:00:12]} 2. c4 {[%emt 0:03:04]} e6 {[%emt 0:00:06]} 3. Nc3 {[%emt 0:02:40]} Nf6 {[%emt 0:00:23]} 4. Nf3 {[%emt 0:02:25]} Be7 {[%emt 0:03:08]} 5. Bg5 {[%emt 0:02:53]} O-O {[%emt 0:01:09]} 6. e3 {[%emt 0:02:29]} Nbd7 {[%emt 0:03:34]} 7. Bd3 {[%emt 0:02:13]} dxc4 {[%emt 0:05:08]} 8. Bxc4 {[%emt 0:00:31]} c5 {[%emt 0:00:24]} 9. O-O {[%emt 0:04:25]} cxd4 {[%emt 0:02:21]} 10. exd4 {[%emt 0:02:56]} Nb6 {[%emt 0:02:28]} 11. Bd3 {[%emt 0:01:46]} Nbd5 {[%emt 0:01:24]} 12. Nxd5 {[%emt 0:02:42]} Nxd5 {[%emt 0:02:00]} 13. Bxe7 {[%emt 0:03:36]} Qxe7 {[%emt 0:00:13]} 14. Ne5 {[%emt 0:02:38]} b6 {[%emt 0:02:16]} 15. Be4 {[%emt 0:03:42]} Bb7 {[%emt 0:01:24]} 16. Rc1 {[%emt 0:03:51]} Rfc8 {[%emt 0:28:18]} 17. Re1 {[%emt 0:15:40]} Rxc1 {[%emt 0:05:02]} 18. Qxc1 {[%emt 0:00:26]} Rc8 {[%emt 0:00:15]} 19. Qb1 {[%emt 0:00:11]} Nf6 {[%emt 0:07:35]} 20. Bxb7 {[%emt 0:05:04]} Qxb7 {[%emt 0:00:03]} 21. Qd3 {[%emt 0:00:18]} Qd5 {[%emt 0:02:34]} 22. Qa6 {[%emt 0:03:13]} Rc7 {[%emt 0:00:21]} 23. Rd1 {[%emt 0:00:29]} g6 {[%emt 0:02:58]} 24. h3 {[%emt 0:01:17]} Kg7 {[%emt 0:00:35]} 25. b3 {[%emt 0:03:46]} Qe4 {[%emt 0:06:16]} 26. Qd3 {[%emt 0:02:52]} Qxd3 {[%emt 0:03:41]} 27. Rxd3 {[%emt 0:00:16]} Rc1+ {[%emt 0:00:21]} 28. Kh2 {[%emt 0:00:31]} Rc2 {[%emt 0:00:39]} 29. a4 {[%emt 0:00:49]} Rxf2 {[%emt 0:00:40]} 30. Nc6 {[%emt 0:00:33]} a5 {[%emt 0:00:51]} 31. Ne7 {[%emt 0:02:06]} Kf8 {[%emt 0:03:59]} 32. Nc8 {[%emt 0:00:35]} Nd5 {[%emt 0:00:10]} 33. Nd6 {[%emt 0:01:21]} Ke7 {[%emt 0:03:46]} 34. Nc4 {[%emt 0:00:44]} g5 {[%emt 0:01:43]} 35. Kg1 {[%emt 0:04:17]} Rc2 {[%emt 0:03:04]} 36. g3 {[%emt 0:03:42]} f6 {[%emt 0:01:03]} 37. Rf3 {[%emt 0:03:47]} Rc1+ {[%emt 0:01:10]} 38. Kf2 {[%emt 0:03:07]} Rd1 {[%emt 0:00:30]} 39. Ne3 {[%emt 0:00:53]} Rd2+ {[%emt 0:02:17]} 40. Ke1 {[%emt 0:00:35]} Rxd4 {[%emt 0:01:01]} 41. Nxd5+ {[%emt 0:50:12]} Rxd5 {[%emt 0:50:19]} 42. Ke2 {[%emt 0:00:32]} h5 {[%emt 0:01:49]} 43. Rc3 {[%emt 0:00:59]} Rd4 {[%emt 0:01:02]} 44. Ke3 {[%emt 0:00:40]} Rb4 {[%emt 0:00:17]} 45. Rd3 {[%emt 0:00:23]} f5 {[%emt 0:00:28]} 46. Kf3 {[%emt 0:01:31]} h4 {[%emt 0:01:06]} 47. gxh4 {[%emt 0:00:50]} Rxh4 {[%emt 0:00:13]} 48. Kg3 {[%emt 0:00:19]} Rb4 {[%emt 0:00:20]} 49. Kf3 {[%emt 0:00:27]} e5 {[%emt 0:03:47]} 50. Kg3 {[%emt 0:00:24]} Ke6 {[%emt 0:00:27]} 51. Kg2 {[%emt 0:00:15]} f4 {[%emt 0:01:21]} 52. h4 {[%emt 0:00:20]} gxh4 {[%emt 0:00:22]} 53. Kh3 {[%emt 0:00:20]} Kf5 {[%emt 0:01:44]} 54. Rc3 {[%emt 0:00:05]} Ke4 {[%emt 0:00:52]} 55. Kg2 {[%emt 0:00:08]} Rd4 {[%emt 0:00:46]} 56. b4 {[%emt 0:00:10]} axb4 {[%emt 0:00:35]} 57. Rb3 {[%emt 0:00:10]} Kd5 {[%emt 0:01:47]} 58. a5 {[%emt 0:00:08]} bxa5 {[%emt 0:00:07]} 59. Kf2 {[%emt 0:00:17]} Kc4 {[%emt 0:00:23]} 60. Rh3 {[%emt 0:00:12]} Rd2+ {[%emt 0:00:54]} 61. Ke1 {[%emt 0:00:06]} Ra2 {[%emt 0:00:23]} 62. Kd1 {[%emt 0:00:06]} b3 {[%emt 0:00:21]} 63. Kc1 {[%emt 0:00:05]} a4 {[%emt 0:00:33]} 64. Kb1 {[%emt 0:00:28]} Rg2 {[%emt 0:00:17]} 65. Rh1 {[%emt 0:00:25]} a3 {[%emt 0:00:38]} 66. Rd1 {[%emt 0:00:25]} h3 {[%emt 0:00:21]} 67. Ka1 {[%emt 0:00:33]} h2 {[%emt 0:00:11]} 68. Kb1 {[%emt 0:00:27]} Rg1 {[%emt 0:00:24]} 69. Kc1 {[%emt 0:00:13]} Kc3 {[%emt 0:00:29]} 70. Rf1 {[%emt 0:00:27]} Rxf1# {[%emt 0:01:00]} 0-1

[Event "Caplin Hastings Masters 2023-24"]
[Site "Hastings"]
[Date "2024.01.02"]
[Round "6.33"]
[White "ONUOHA, Obioma"]
[Black "Blades, Kit"]
[Result "1-0"]
[ECO "B40"]
[WhiteElo "1995"]
[BlackElo "1771"]
[Annotator "NA RC"]
[PlyCount "87"]
[EventDate "2023.12.18"]
[EventType "swiss"]
[EventCountry "ENG"]
[SourceTitle "playchess.com"]
[Source "ChessBase"]
[SourceQuality "1"]
[TimeControl "40/6000+30:3000+30"]

1. e4 {[%emt 0:03:53]} c5 {[%emt 0:00:06]} 2. Nf3 {[%emt 0:00:08]} e6 {[%emt 0:00:05]} 3. d4 {[%emt 0:00:33]} cxd4 {[%emt 0:00:06]} 4. Nxd4 {[%emt 0:00:05]} Nc6 {[%emt 0:00:05]} 5. Nxc6 {[%emt 0:03:11]} bxc6 {[%emt 0:00:07]} 6. Bd3 {[%emt 0:00:09]} d5 {[%emt 0:00:18]} 7. O-O {[%emt 0:01:09]} Nf6 {[%emt 0:00:47]} 8. e5 {[%emt 0:01:49]} Nd7 {[%emt 0:00:14]} 9. f4 {[%emt 0:02:24]} Qb6+ {[%emt 0:06:38]} 10. Kh1 {[%emt 0:00:12]} g6 {[%emt 0:06:34]} 11. Nd2 {[%emt 0:05:16]} Be7 {[%emt 0:04:40]} 12. a4 {[%emt 0:03:42]} a5 {[%emt 0:01:57]} 13. Nf3 {[%emt 0:00:55]} Ba6 {[%emt 0:02:25]} 14. Qe2 {[%emt 0:02:55]} c5 {[%emt 0:17:26]} 15. c4 {[%emt 0:12:25]} d4 {[%emt 0:00:59]} 16. Ra3 {[%emt 0:03:17]} Rb8 {[%emt 0:01:09]} 17. Nd2 {[%emt 0:03:47]} Qc7 {[%emt 0:03:40]} 18. Bc2 {[%emt 0:07:23]} Rb4 {[%emt 0:03:45]} 19. Rh3 {[%emt 0:00:47]} Nb6 {[%emt 0:01:07]} 20. b3 {[%emt 0:00:11]} Nd5 {[%emt 0:00:32]} 21. Ne4 {[%emt 0:01:19]} Rb8 {[%emt 0:03:33]} 22. Bd2 {[%emt 0:09:28]} Nb4 {[%emt 0:09:57]} 23. Bxb4 {[%emt 0:06:55]} axb4 {[%emt 0:00:20]} 24. Rh6 {[%emt 0:09:53]} Bb7 {[%emt 0:04:42]} 25. Ng5 {[%emt 0:01:26]} Bxg5 {[%emt 0:06:04]} 26. fxg5 {[%emt 0:00:08]} Rd8 {[%emt 0:00:24]} 27. Bd3 {[%emt 0:00:12]} Qe7 {[%emt 0:01:33]} 28. Qg4 {[%emt 0:02:28]} Qf8 {[%emt 0:07:49]} 29. Rf6 {[%emt 0:06:40]} Qg7 {[%emt 0:00:50]} 30. Kg1 {[%emt 0:05:53]} Rd7 {[%emt 0:00:58]} 31. Qf4 {[%emt 0:00:38]} Qf8 {[%emt 0:03:29]} 32. Qh4 {[%emt 0:01:07]} Qg7 {[%emt 0:00:47]} 33. Qh3 {[%emt 0:00:49]} Re7 {[%emt 0:01:04]} 34. Kf2 {[%emt 0:00:41]} O-O {[%emt 0:01:12]} 35. Qh4 {[%emt 0:03:50]} Ra8 {[%emt 0:01:46]} 36. Qg3 {[%emt 0:01:10]} Kf8 {[%emt 0:02:05]} 37. Qh4 {[%emt 0:01:24]} Kg8 {[%emt 0:00:09]} 38. Kg1 {[%emt 0:00:43]} Bc6 {[%emt 0:00:25]} 39. Kf2 {[%emt 0:03:48]} Bb7 {[%emt 0:00:42]} 40. Qf4 {[%emt 0:00:19]} Kf8 {[%emt 0:01:22]} 41. Bxg6 {[%emt 0:52:57]} Ke8 {[%emt 0:55:23]} 42. Rxh7 {[%emt 0:00:45]} fxg6 {[%emt 0:00:49]} 43. Rxg7 {[%emt 0:00:14]} Rxg7 {[%emt 0:00:08]} 44. Rxe6+ {[%emt 0:00:42]} 1-0

[Event "Caplin Hastings Masters 2023-24"]
[Site "Hastings"]
[Date "2024.01.02"]
[Round "6.34"]
[White "Alcindor, Samuel"]
[Black "Sugden, John N"]
[Result "0-1"]
[ECO "A26"]
[WhiteElo "1714"]
[BlackElo "1968"]
[Annotator "NA RC"]
[PlyCount "114"]
[EventDate "2023.12.18"]
[EventType "swiss"]
[EventCountry "ENG"]
[SourceTitle "playchess.com"]
[Source "ChessBase"]
[SourceQuality "1"]
[TimeControl "40/6000+30:3000+30"]

1. c4 {[%emt 0:01:13]} g6 {[%emt 0:01:32]} 2. Nc3 {[%emt 0:00:25]} Bg7 {[%emt 0:00:00]} 3. g3 {[%emt 0:00:08]} e5 {[%emt 0:00:19]} 4. Bg2 {[%emt 0:00:15]} Nc6 {[%emt 0:00:30]} 5. e4 {[%emt 0:00:12]} d6 {[%emt 0:00:55]} 6. Nge2 {[%emt 0:00:10]} Nge7 {[%emt 0:01:48]} 7. d3 {[%emt 0:00:25]} Be6 {[%emt 0:03:04]} 8. O-O {[%emt 0:02:00]} O-O {[%emt 0:02:18]} 9. Nd5 {[%emt 0:00:39]} f5 {[%emt 0:03:32]} 10. Be3 {[%emt 0:01:40]} Qd7 {[%emt 0:11:18]} 11. Rb1 {[%emt 0:03:54]} Rae8 {[%emt 0:05:53]} 12. b4 {[%emt 0:03:04]} Nc8 {[%emt 0:01:46]} 13. a4 {[%emt 0:03:16]} Nd8 {[%emt 0:02:00]} 14. b5 {[%emt 0:00:58]} c6 {[%emt 0:03:00]} 15. bxc6 {[%emt 0:00:39]} bxc6 {[%emt 0:00:11]} 16. Ndc3 {[%emt 0:01:16]} f4 {[%emt 0:04:32]} 17. Bd2 {[%emt 0:04:48]} f3 {[%emt 0:01:42]} 18. Bh1 {[%emt 0:01:03]} fxe2 {[%emt 0:00:24]} 19. Qxe2 {[%emt 0:00:28]} Bh3 {[%emt 0:02:32]} 20. Rfc1 {[%emt 0:00:20]} Ne6 {[%emt 0:01:58]} 21. Rb2 {[%emt 0:01:23]} Nd4 {[%emt 0:01:46]} 22. Qd1 {[%emt 0:04:04]} Bg4 {[%emt 0:01:37]} 23. Qe1 {[%emt 0:00:07]} Nf3+ {[%emt 0:01:40]} 24. Bxf3 {[%emt 0:00:09]} Bxf3 {[%emt 0:00:14]} 25. Qf1 {[%emt 0:00:40]} Rf7 {[%emt 0:07:23]} 26. Rcb1 {[%emt 0:00:40]} Ref8 {[%emt 0:00:30]} 27. Be3 {[%emt 0:00:48]} h5 {[%emt 0:04:22]} 28. h4 {[%emt 0:01:45]} Kh7 {[%emt 0:01:10]} 29. Kh2 {[%emt 0:01:15]} Bh6 {[%emt 0:01:19]} 30. Qe1 {[%emt 0:01:19]} Bxe3 {[%emt 0:02:00]} 31. Qxe3 {[%emt 0:00:17]} Qe6 {[%emt 0:01:44]} 32. a5 {[%emt 0:00:41]} Bg4 {[%emt 0:01:30]} 33. Kg1 {[%emt 0:01:55]} Rf3 {[%emt 0:05:06]} 34. Qe1 {[%emt 0:01:53]} R8f7 {[%emt 0:05:58]} 35. Qd2 {[%emt 0:01:06]} Rg7 {[%emt 0:04:24]} 36. Rb8 {[%emt 0:01:54]} Ne7 {[%emt 0:03:19]} 37. Re8 {[%emt 0:02:23]} Rg8 {[%emt 0:02:06]} 38. Rbb8 {[%emt 0:00:12]} Rxe8 {[%emt 0:03:49]} 39. Rxe8 {[%emt 0:00:09]} Qd7 {[%emt 0:04:12]} 40. Rb8 {[%emt 0:00:31]} Rf7 {[%emt 0:03:34]} 41. Qg5 {[%emt 0:52:33]} Qc7 {[%emt 0:56:42]} 42. Re8 {[%emt 0:04:04]} Ng8 {[%emt 0:02:06]} 43. Qd8 {[%emt 0:01:07]} Qxd8 {[%emt 0:03:11]} 44. Rxd8 {[%emt 0:00:08]} Rd7 {[%emt 0:01:44]} 45. Rb8 {[%emt 0:01:20]} Kg7 {[%emt 0:01:31]} 46. Kg2 {[%emt 0:00:32]} Kf7 {[%emt 0:00:00]} 47. f3 {[%emt 0:00:00]} Be6 {[%emt 0:00:00]} 48. Na2 {[%emt 0:00:00]} Rc7 {[%emt 0:00:00]} 49. Nb4 {[%emt 0:00:00]} Bc8 {[%emt 0:00:00]} 50. a6 {[%emt 0:00:00]} Ne7 {[%emt 0:00:00]} 51. Kf2 {[%emt 0:00:00]} c5 {[%emt 0:00:00]} 52. Nc2 {[%emt 0:00:00]} Bxa6 {[%emt 0:00:00]} 53. Rd8 {[%emt 0:00:00]} Ke6 {[%emt 0:00:00]} 54. Ne3 {[%emt 0:00:00]} Bb7 {[%emt 0:00:00]} 55. Rb8 {[%emt 0:00:00]} a5 {[%emt 0:00:00]} 56. Nc2 {[%emt 0:00:00]} Bc6 {[%emt 0:00:00]} 57. Na3 {[%emt 0:00:00]} Rb7 {[%emt 0:00:00]} 0-1

[Event "Caplin Hastings Masters 2023-24"]
[Site "Hastings"]
[Date "2024.01.02"]
[Round "6.35"]
[White "Batchelor, Paul A"]
[Black "Larkin, Benjamin"]
[Result "0-1"]
[ECO "D85"]
[WhiteElo "1937"]
[BlackElo "1814"]
[Annotator "NA RC"]
[PlyCount "136"]
[EventDate "2023.12.18"]
[EventType "swiss"]
[EventCountry "ENG"]
[SourceTitle "playchess.com"]
[Source "ChessBase"]
[SourceQuality "1"]
[TimeControl "40/6000+30:3000+30"]

1. d4 {[%emt 0:27:38]} Nf6 {[%emt 0:00:13]} 2. c4 {[%emt 0:00:22]} g6 {[%emt 0:00:06]} 3. Nc3 {[%emt 0:02:43]} d5 {[%emt 0:00:05]} 4. cxd5 {[%emt 0:00:10]} Nxd5 {[%emt 0:00:06]} 5. e4 {[%emt 0:00:16]} Nxc3 {[%emt 0:00:05]} 6. bxc3 {[%emt 0:00:05]} Bg7 {[%emt 0:00:05]} 7. Be3 {[%emt 0:00:07]} c5 {[%emt 0:00:16]} 8. Qd2 {[%emt 0:00:07]} O-O {[%emt 0:00:57]} 9. Nf3 {[%emt 0:00:11]} Qa5 {[%emt 0:00:54]} 10. Rc1 {[%emt 0:00:30]} Bg4 {[%emt 0:00:47]} 11. d5 {[%emt 0:02:48]} Bxf3 {[%emt 0:00:41]} 12. gxf3 {[%emt 0:00:07]} Nd7 {[%emt 0:02:43]} 13. c4 {[%emt 0:04:40]} Qxd2+ {[%emt 0:01:14]} 14. Kxd2 {[%emt 0:01:56]} b6 {[%emt 0:01:36]} 15. Be2 {[%emt 0:04:23]} e6 {[%emt 0:00:31]} 16. h4 {[%emt 0:05:43]} exd5 {[%emt 0:03:07]} 17. cxd5 {[%emt 0:00:14]} h6 {[%emt 0:07:12]} 18. Rhg1 {[%emt 0:05:39]} Kh7 {[%emt 0:01:00]} 19. Bb5 {[%emt 0:17:39]} Rad8 {[%emt 0:01:25]} 20. Bxd7 {[%emt 0:00:21]} Rxd7 {[%emt 0:00:04]} 21. h5 {[%emt 0:00:08]} g5 {[%emt 0:00:36]} 22. a4 {[%emt 0:00:14]} f5 {[%emt 0:00:13]} 23. Ke2 {[%emt 0:08:35]} Re8 {[%emt 0:07:29]} 24. Rc4 {[%emt 0:02:10]} Rde7 {[%emt 0:02:31]} 25. d6 {[%emt 0:07:06]} Rd7 {[%emt 0:00:32]} 26. Rd1 {[%emt 0:01:21]} f4 {[%emt 0:00:39]} 27. Bd2 {[%emt 0:07:00]} Re6 {[%emt 0:00:46]} 28. Bc3 {[%emt 0:00:49]} Rexd6 {[%emt 0:08:16]} 29. Rxd6 {[%emt 0:00:13]} Rxd6 {[%emt 0:00:04]} 30. e5 {[%emt 0:01:30]} Rd5 {[%emt 0:04:50]} 31. Re4 {[%emt 0:03:25]} Kg8 {[%emt 0:00:00]} 32. e6 {[%emt 0:00:32]} Rd8 {[%emt 0:00:00]} 33. e7 {[%emt 0:01:03]} Re8 {[%emt 0:00:00]} 34. Bxg7 {[%emt 0:00:12]} Kxg7 {[%emt 0:00:00]} 35. Re6 {[%emt 0:00:10]} Kf7 {[%emt 0:00:00]} 36. Rxh6 {[%emt 0:00:07]} Rxe7+ {[%emt 0:00:00]} 37. Kd3 {[%emt 0:00:09]} Rd7+ {[%emt 0:00:12]} 38. Kc3 {[%emt 0:00:12]} Kg8 {[%emt 0:01:09]} 39. Rc6 {[%emt 0:00:11]} Rh7 {[%emt 0:00:17]} 40. h6 {[%emt 0:00:18]} Rd7 {[%emt 0:00:35]} 41. a5 {[%emt 0:51:05]} Rb7 {[%emt 0:53:57]} 42. a6 {[%emt 0:00:24]} Rd7 {[%emt 0:01:19]} 43. Rc8+ {[%emt 0:00:25]} Kh7 {[%emt 0:00:12]} 44. Rb8 {[%emt 0:00:04]} Kxh6 {[%emt 0:00:06]} 45. Rb7 {[%emt 0:00:02]} Rg7 {[%emt 0:00:14]} 46. Kd3 {[%emt 0:00:48]} Kg6 {[%emt 0:00:09]} 47. Ke4 {[%emt 0:00:36]} Kf6 {[%emt 0:00:10]} 48. Kd5 {[%emt 0:00:20]} Re7 {[%emt 0:01:23]} 49. Kd6 {[%emt 0:00:40]} Re6+ {[%emt 0:00:11]} 50. Kd5 {[%emt 0:00:08]} Re7 {[%emt 0:13:14]} 51. Kd6 {[%emt 0:00:06]} Rf7 {[%emt 0:02:13]} 52. Kd5 {[%emt 0:00:25]} Kg6 {[%emt 0:10:55]} 53. Ke6 {[%emt 0:00:33]} Rf6+ {[%emt 0:00:06]} 54. Kd5 {[%emt 0:00:05]} Rf7 {[%emt 0:05:46]} 55. Ke6 {[%emt 0:00:06]} Rg7 {[%emt 0:01:14]} 56. Kd5 {[%emt 0:00:12]} Kf6 {[%emt 0:00:14]} 57. Kc4 {[%emt 0:01:32]} Re7 {[%emt 0:00:54]} 58. Kd5 {[%emt 0:00:42]} Rf7 {[%emt 0:02:33]} 59. Kc4 {[%emt 0:07:15]} Ke6 {[%emt 0:00:25]} 60. Rb8 {[%emt 0:02:40]} Rc7 {[%emt 0:01:48]} 61. Rg8 {[%emt 0:00:00]} b5+ {[%emt 0:00:00]} 62. Kxb5 {[%emt 0:00:00]} c4 {[%emt 0:00:00]} 63. Rxg5 {[%emt 0:00:00]} c3 {[%emt 0:00:00]} 64. Rg1 {[%emt 0:00:00]} c2 {[%emt 0:00:00]} 65. Rc1 {[%emt 0:00:00]} Kd5 {[%emt 0:00:00]} 66. Kb4 {[%emt 0:00:00]} Kd4 {[%emt 0:00:00]} 67. Kb3 {[%emt 0:00:00]} Kd3 {[%emt 0:00:00]} 68. Kb2 {[%emt 0:00:00]} Kd2 {[%emt 0:00:00]} 0-1